Workbook

Sheet Расходы
B1: Бюджет мероприятия [Название мероприятия] | H1: РАСХОДЫ
B3: ОБЩИЕ РАСХОДЫ | G3: Предполагаемые | H3: Фактические
G4: =SUM(C11,C19,C25,C32,G11,G19,G24) -> 882.00 ₽ | H4: =SUM(D11,D19,D25,D32,H11,H19,H24) -> 333.00 ₽
B6: Место проведения | C6: Предполагаемые | D6: Фактические | F6: Угощения | G6: Предполагаемые | H6: Фактические
B7: Арендная плата | C7: 500.00 ₽ | F7: Еда
B8: Обслуживающий персонал | F8: Напитки | G8: 20.00 ₽
B9: Оборудование | F9: Скатерти | H9: 20.00 ₽
B10: Столы и стулья | F10: Обслуживающий персонал и чаевые
B11: Итог | C11: =SUBTOTAL(109,Таблица1[Предполагаемые]) -> 500.00 ₽ | D11: =SUBTOTAL(109,Таблица1[Фактические]) -> 0.00 ₽ | F11: Итог | G11: =SUBTOTAL(109,Таблица3[Предполагаемые]) -> 20.00 ₽ | H11: =SUBTOTAL(109,Таблица3[Фактические]) -> 20.00 ₽
B13: Украшения | C13: Предполагаемые | D13: Фактические | F13: Программа | G13: Предполагаемые | H13: Фактические
B14: Цветы | C14: 200.00 ₽ | D14: 300.00 ₽ | F14: Исполнители
B15: Свечи | F15: Докладчики | G15: 30.00 ₽
B16: Освещение | F16: Транспорт
B17: Воздушные шары | F17: Гостиница
B18: Запасы бумаги | F18: Другое
B19: Итог | C19: =SUBTOTAL(109,Таблица4[Предполагаемые]) -> 200.00 ₽ | D19: =SUBTOTAL(109,Таблица4[Фактические]) -> 300.00 ₽ | F19: Итог | G19: =SUBTOTAL(109,Таблица5[Предполагаемые]) -> 30.00 ₽ | H19: =SUBTOTAL(109,Таблица5[Фактические]) -> 0.00 ₽
B21: Реклама | C21: Предполагаемые | D21: Фактические | F21: Призы | G21: Предполагаемые | H21: Фактические
B22: Графический дизайн | F22: Ленты, таблички, награды
B23: Фотокопирование и печать | C23: 20.00 ₽ | F23: Подарки | G23: 100.00 ₽
B24: Почтовые расходы | F24: Итог | G24: =SUBTOTAL(109,Таблица7[Предполагаемые]) -> 100.00 ₽ | H24: =SUBTOTAL(109,Таблица7[Фактические]) -> 0.00 ₽
B25: Итог | C25: =SUBTOTAL(109,Таблица6[Предполагаемые]) -> 20.00 ₽ | D25: =SUBTOTAL(109,Таблица6[Фактические]) -> 0.00 ₽
B27: Прочее | C27: Предполагаемые | D27: Фактические
B28: Телефон | D28: 13.00 ₽
B29: Транспорт | C29: 12.00 ₽
B30: Канцтовары
B31: Службы факсов
B32: Итог | C32: =SUBTOTAL(109,Таблица8[Предполагаемые]) -> 12.00 ₽ | D32: =SUBTOTAL(109,Таблица8[Фактические]) -> 13.00 ₽

Sheet Доходы
B1: Бюджет мероприятия [Название мероприятия] | G1: ДОХОДЫ
B3: ОБЩИЙ ДОХОД | F3: Предполагаемые | G3: Фактические
F4: =SUM(F11, F18, F25, F33) -> 1,936.00 ₽ | G4: =SUM(G11,G18,G25, G33) -> 1,831.00 ₽
B6: БИЛЕТЫ
B7: Предполагаемое кол-во | C7: Фактическое кол-во | D7: Тип | E7: Цена | F7: Предполагаемый доход | G7: Фактический доход
B8: 300 | C8: 278 | D8: Взрослые @ | E8: 5.00 ₽ | F8: =B8*E8 -> 1,500.00 ₽ | G8: =C8*E8 -> 1,390.00 ₽
B9: 197 | C9: 195 | D9: Дети @ | E9: 2.00 ₽ | F9: =B9*E9 -> 394.00 ₽ | G9: =C9*E9 -> 390.00 ₽
B10: 42 | C10: 51 | D10: Другие @ | E10: 1.00 ₽ | F10: =B10*E10 -> 42.00 ₽ | G10: =C10*E10 -> 51.00 ₽
B11: Итог | F11: =SUBTOTAL(109,Таблица9[Предполагаемый доход]) -> 1,936.00 ₽ | G11: =SUBTOTAL(109,Таблица9[Фактический доход]) -> 1,831.00 ₽
B13: РЕКЛАМА В ПРОГРАММЕ
B14: Предполагаемое кол-во | C14: Фактическое кол-во | D14: Тип | E14: Цена | F14: Предполагаемый доход | G14: Фактический доход
B15: 12 | D15: Обложка @ | F15: =B15*E15 -> 0.00 ₽ | G15: =C15*E15 -> 0.00 ₽
C16: 158 | D16: Половина страницы @ | F16: =B16*E16 -> 0.00 ₽ | G16: =C16*E16 -> 0.00 ₽
B17: 4 | D17: Четверть страницы @ | F17: =B17*E17 -> 0.00 ₽ | G17: =C17*E17 -> 0.00 ₽
B18: Итог | F18: =SUBTOTAL(109,Таблица10[Предполагаемый доход]) -> 0.00 ₽ | G18: =SUBTOTAL(109,Таблица10[Фактический доход]) -> 0.00 ₽
B20: ЭКСПОНЕНТЫ И ПРОДАВЦЫ
B21: Предполагаемое кол-во | C21: Фактическое кол-во | D21: Тип | E21: Цена | F21: Предполагаемый доход | G21: Фактический доход
B22: 23 | D22: Большие стенды @ | F22: =B22*E22 -> 0.00 ₽ | G22: =C22*E22 -> 0.00 ₽
B23: 354 | D23: Средние стенды @ | F23: =B23*E23 -> 0.00 ₽ | G23: =C23*E23 -> 0.00 ₽
B24: 56 | D24: Маленькие стенды @ | F24: =B24*E24 -> 0.00 ₽ | G24: =C24*E24 -> 0.00 ₽
B25: Итог | F25: =SUBTOTAL(109,Таблица11[Предполагаемый доход]) -> 0.00 ₽ | G25: =SUBTOTAL(109,Таблица11[Фактический доход]) -> 0.00 ₽
B27: ПРОДАЖА ТОВАРОВ
B28: Предполагаемое кол-во | C28: Фактическое кол-во | D28: Тип | E28: Цена | F28: Предполагаемый доход | G28: Фактический доход
D29: Товары @ | F29: =B29*E29 -> 0.00 ₽ | G29: =C29*E29 -> 0.00 ₽
B30: 123 | D30: Товары @ | F30: =B30*E30 -> 0.00 ₽ | G30: =C30*E30 -> 0.00 ₽
D31: Товары @ | F31: =B31*E31 -> 0.00 ₽ | G31: =C31*E31 -> 0.00 ₽
B32: 13 | D32: Товары @ | F32: =B32*E32 -> 0.00 ₽ | G32: =C32*E32 -> 0.00 ₽
B33: Итог | F33: =SUBTOTAL(109,Таблица12[Предполагаемый доход]) -> 0.00 ₽ | G33: =SUBTOTAL(109,Таблица12[Фактический доход]) -> 0.00 ₽

Sheet Сводка по прибыли и убыткам
B1: Бюджет мероприятия [Название мероприятия] | G1: СВОДКА
G2: по прибыли и убыткам
C5: Предполагаемые | D5: Фактические
B6: Общий доход | C6: =Доходы!F4 -> 1,936.00 ₽ | D6: =Доходы!G4 -> 1,831.00 ₽
B7: Общие расходы | C7: =Расходы!G4 -> 882.00 ₽ | D7: =Расходы!H4 -> 333.00 ₽
B9: Общая прибыль (или убытки) | C9: =C6-C7 -> 1,054.00 ₽ | D9: =D6-D7 -> 1,498.00 ₽
